bitfinex/quotes_SOLUSD_20250308
["timestamp","ask_amount","ask_price","bid_price","bid_amount"]
[1741414224181,7.8416,140.22,140.17,20.57273307]
[1741414226304,13.43903307,140.21,140.15,20.57423307]
[1741414227706,21.28063307,140.22,140.16,13.43903307]
[1741414228517,21.28063307,140.22,140.17,7.1341]
[1741414232288,7.8416,140.22,140.18,13.43903307]
[1741414232492,7.8416,140.22,140.19,13.43903307]
[1741414232931,7.8416,140.22,140.18,13.43903307]
[1741414234115,7.8416,140.22,140.17,76.8341]
[1741414234296,7.8416,140.22,140.17,69.7]
[1741414234497,7.8416,140.22,140.18,13.43903307]
[1741414235498,7.8716,140.22,140.18,13.43903307]
[1741414236409,7.8716,140.22,140.18,20.57263307]
[1741414236915,7.8716,140.22,140.18,13.43903307]
[1741414237698,7.8716,140.22,140.17,13.43903307]
[1741414238213,21.31063307,140.22,140.16,20.57353307]
[1741414239218,7.8716,140.22,140.17,13.43903307]
[1741414239898,15.0033,140.22,140.17,13.43903307]
[1741414240094,7.8716,140.22,140.17,13.43903307]
[1741414241318,7.8716,140.22,140.17,20.57303307]
[1741414241517,7.8716,140.22,140.18,13.43903307]
[1741414242511,28.44223307,140.22,140.17,13.43903307]
[1741414242692,13.43903307,140.21,140.15,76.835]
[1741414242892,13.43903307,140.21,140.16,13.43903307]
[1741414243719,7.1326,140.2,140.15,83.13903307]
[1741414245118,7.1326,140.2,140.15,90.27413307]
[1741414245420,7.8716,140.22,140.18,13.43903307]
[1741414245421,15.0034,140.22,140.18,13.43903307]
[1741414245610,15.0034,140.22,140.17,13.43903307]
[1741414245806,15.0034,140.22,140.17,20.57313307]
[1741414246009,15.0034,140.22,140.17,13.43903307]
[1741414246333,28.44243307,140.22,140.16,20.57353307]
[1741414248524,0.03,140.22,140.18,13.43903307]
[1741414248826,0.03,140.22,140.17,20.57303307]
[1741414250727,13.46903307,140.22,140.16,20.57353307]
[1741414251625,0.03,140.22,140.16,20.57353307]
[1741414252637,0.03,140.22,140.19,13.43903307]
[1741414253129,0.03,140.22,140.18,13.43903307]
[1741414254525,0.03,140.22,140.18,20.57233307]
[1741414258615,0.03,140.22,140.19,13.43903307]
[1741414259222,0.03,140.22,140.2,7.1326]
[1741414260022,0.03,140.22,140.2,20.57163307]
[1741414264427,0.03,140.22,140.18,83.13903307]
[1741414265023,0.03,140.22,140.18,90.27253307]
[1741414265468,0.03,140.22,140.18,69.7]
[1741414265626,19.74003307,140.21,140.15,83.13903307]
[1741414265940,1.6355,140.2,140.15,13.43903307]
[1741414267013,8.7684,140.2,140.15,13.43903307]
[1741414267629,13.43903307,140.19,140.14,19.73903307]
[1741414268019,13.43903307,140.19,140.14,13.43903307]
[1741414268324,13.43903307,140.19,140.13,20.57523307]
[1741414268539,8.7684,140.2,140.14,13.43903307]
[1741414268724,22.20743307,140.2,140.14,13.43903307]
[1741414269127,22.20743307,140.2,140.15,13.43903307]
[1741414269326,13.4333,140.21,140.16,13.43903307]
[1741414270248,6.301,140.21,140.17,13.43903307]
[1741414271035,6.301,140.21,140.18,13.43903307]
[1741414271437,6.301,140.21,140.17,13.43903307]
[1741414271827,6.301,140.21,140.19,13.43903307]
[1741414273222,0.03,140.22,140.19,13.43903307]
[1741414273427,0.03,140.22,140.19,20.57213307]
[1741414273951,0.03,140.22,140.19,7.1331]
[1741414274949,0.03,140.22,140.19,20.57213307]
[1741414275554,0.03,140.22,140.18,13.43903307]
[1741414275759,0.03,140.22,140.18,20.57263307]
[1741414276448,0.03,140.22,140.19,13.43903307]
[1741414277354,0.03,140.22,140.18,7.1336]
[1741414277648,13.46903307,140.22,140.17,76.0]
[1741414277854,13.46903307,140.22,140.17,69.7]
[1741414278058,13.43903307,140.21,140.17,69.7]
[1741414279457,13.46903307,140.22,140.17,69.7]
[1741414279859,20.60073307,140.22,140.17,69.7]
[1741414280060,0.03,140.22,140.17,90.27313307]
[1741414280661,0.03,140.22,140.17,20.57313307]
[1741414281167,0.03,140.22,140.18,13.43903307]
[1741414282550,0.03,140.22,140.19,7.1331]
[1741414283562,0.03,140.22,140.2,13.43903307]
[1741414283745,0.03,140.22,140.19,7.1331]
[1741414283746,0.03,140.22,140.21,13.43903307]
[1741414284142,0.03,140.22,140.19,76.8331]
[1741414284443,0.03,140.22,140.2,13.43903307]
[1741414284642,0.03,140.22,140.21,7.1321]
[1741414286865,0.03,140.22,140.21,20.57113307]
[1741414288145,0.0001,140.22,140.21,108.92078193]
[1741414288343,0.0001,140.22,140.21,162.67691421]
[1741414289655,2.0773392,140.3,140.23,71.2796]
[1741414289864,2.0773392,140.3,140.27,13.43903307]
[1741414290164,2.0773392,140.3,140.28,13.43903307]
[1741414290341,2.0773392,140.3,140.29,13.43903307]
[1741414290841,2.0773392,140.3,140.28,13.43903307]
[1741414291048,2.0773392,140.3,140.27,13.43903307]
[1741414292264,2.0773392,140.3,140.27,20.56783307]
[1741414292947,2.0773392,140.3,140.28,13.43903307]
[1741414293150,2.0773392,140.3,140.27,13.43903307]
[1741414294252,2.0773392,140.3,140.22,1.06914064]
[1741414294558,2.0773392,140.3,140.24,13.43903307]
[1741414294559,19.50683307,140.29,140.24,13.43903307]
[1741414294873,6.0678,140.29,140.24,13.43903307]
[1741414295174,6.0678,140.29,140.25,13.43903307]
[1741414301163,6.0678,140.29,140.24,13.43903307]
[1741414301474,5.5678,140.29,140.24,13.43903307]
[1741414301658,12.6959,140.29,140.24,13.43903307]
[1741414302155,12.6959,140.29,140.25,13.43903307]
[1741414305085,5.5678,140.29,140.25,13.43903307]
[1741414306467,12.6959,140.29,140.24,13.43903307]
[1741414307859,12.6959,140.29,140.25,13.43903307]
[1741414314389,5.5678,140.29,140.25,20.56893307]
[1741414315508,12.6961,140.29,140.23,7.1307]
[1741414315675,12.6961,140.29,140.24,13.43903307]
[1741414316776,12.6961,140.29,140.24,20.56953307]
[1741414319293,12.7261,140.29,140.24,20.56953307]
[1741414319793,12.7261,140.29,140.24,13.43903307]
[1741414320292,12.7261,140.29,140.23,76.831]
[1741414320499,12.7261,140.29,140.24,13.43903307]
[1741414322095,5.5978,140.29,140.26,13.43903307]
[1741414322497,5.5978,140.29,140.25,13.43903307]
[1741414322698,12.7258,140.29,140.25,13.43903307]
[1741414324004,5.5978,140.29,140.26,13.43903307]
[1741414324507,0.03,140.29,140.28,13.43903307]
[1741414326183,0.03,140.29,140.28,20.56753307]
[1741414329405,0.03,140.29,140.28,7.1285]
[1741414329582,0.03,140.29,140.28,20.56753307]
[1741414331107,0.03,140.29,140.28,90.26753307]
[1741414335888,0.03,140.29,140.28,108.91718193]
[1741414339909,0.03,140.29,140.28,122.356215]
[1741414340116,0.03,140.29,140.28,162.67331421]
[1741414340717,2.1073392,140.3,140.29,18.64964886]
[1741414340718,3.92e-05,140.3,140.29,18.64964886]
[1741414340919,3.92e-05,140.3,140.29,32.08868193]
[1741414341100,3.92e-05,140.3,140.29,101.78868193]
[1741414342008,3.92e-05,140.3,140.29,108.91668193]
[1741414342412,1.6606632,140.3,140.29,108.91668193]
[1741414342592,6.32e-05,140.3,140.29,108.91668193]
[1741414342804,6.32e-05,140.3,140.29,109.98530538]
[1741414343014,21.32793307,140.4,140.29,164.97930538]
[1741414343201,21.32793307,140.4,140.29,150.47164886]
[1741414343404,28.45043307,140.4,140.34,13.43903307]
[1741414344119,28.45043307,140.4,140.35,13.43903307]
[1741414346125,28.45043307,140.4,140.34,13.43903307]
[1741414348327,21.32793307,140.4,140.35,13.43903307]
[1741414348629,28.45053307,140.4,140.35,13.43903307]
[1741414349224,28.45053307,140.4,140.34,13.43903307]
[1741414350025,28.45053307,140.4,140.34,20.56423307]
[1741414351130,28.45053307,140.4,140.35,13.43903307]
[1741414351526,7.8889,140.4,140.35,13.43903307]
[1741414351729,15.0114,140.4,140.35,13.43903307]
[1741414352426,28.45043307,140.4,140.35,13.43903307]
[1741414354026,28.45043307,140.4,140.34,7.1252]
[1741414354330,13.43903307,140.38,140.32,83.13903307]
[1741414354532,13.43903307,140.38,140.32,90.26553307]
[1741414355230,20.56293307,140.38,140.32,90.26553307]
[1741414356114,7.1239,140.38,140.33,13.43903307]
[1741414357711,13.43903307,140.38,140.32,83.13903307]
[1741414358125,20.56203307,140.39,140.33,13.43903307]
[1741414358636,13.43903307,140.38,140.32,90.26543307]
[1741414359533,20.56293307,140.38,140.32,90.26543307]
[1741414360315,20.56293307,140.38,140.32,69.7]
[1741414360516,20.56293307,140.38,140.32,83.13903307]
[1741414360817,20.56293307,140.38,140.32,13.43903307]
[1741414361210,21.28233307,140.36,140.3,83.17203307]
[1741414361410,21.28233307,140.36,140.3,13.47203307]
[1741414361705,7.125,140.35,140.3,0.033]
[1741414361912,20.56403307,140.35,140.3,0.033]
[1741414365531,13.43903307,140.34,140.3,0.033]
[1741414365940,7.126,140.33,140.3,0.033]
[1741414366231,20.56473307,140.34,140.3,0.033]
[1741414367538,7.1257,140.34,140.3,0.033]
[1741414367939,7.1257,140.34,140.3,13.47203307]
[1741414368125,7.1252,140.35,140.3,13.47203307]
[1741414368330,28.40693307,140.36,140.3,13.47203307]
[1741414368929,13.43903307,140.35,140.3,13.47203307]
[1741414369329,20.56423307,140.35,140.3,13.47203307]
[1741414370638,7.1252,140.35,140.31,13.43903307]
[1741414370837,7.1252,140.35,140.3,20.59953307]
[1741414371350,20.56423307,140.35,140.3,13.47203307]
[1741414372024,20.56423307,140.35,140.3,0.033]
[1741414381037,13.43903307,140.34,140.3,0.033]
[1741414381237,7.126,140.33,140.3,0.033]
[1741414382453,13.43903307,140.34,140.3,0.033]
[1741414382651,20.56473307,140.34,140.3,0.033]
[1741414383744,13.43903307,140.33,140.3,0.033]
[1741414384040,21.05593307,140.31,140.3,0.033]
[1741414386057,46.00053307,140.31,140.28,0.033]
[1741414386251,13.43903307,140.29,140.28,0.033]
[1741414387945,20.56703307,140.29,140.28,0.033]
[1741414390133,7.7416,140.27,140.25,0.033]
[1741414390338,13.43903307,140.26,140.25,0.033]
[1741414393863,20.56863307,140.26,140.25,0.033]
[1741414394644,39.21828193,140.26,140.25,0.033]
[1741414396962,24.75514886,140.25,140.22,0.033]
[1741414397172,32.08868193,140.23,140.22,0.033]
[1741414399060,39.21978193,140.23,140.22,0.033]
[1741414399262,32.08868193,140.23,140.22,0.033]
[1741414399463,33.72478193,140.23,140.22,0.033]
[1741414401269,40.85588193,140.23,140.22,0.033]
[1741414405154,42.85588193,140.23,140.22,0.033]
[1741414405349,40.85588193,140.23,140.22,0.033]
[1741414409069,25.78074886,140.23,140.22,0.033]
[1741414409272,39.21978193,140.23,140.22,0.033]
[1741414409677,13.43903307,140.23,140.22,0.033]
[1741414410293,32.08868193,140.23,140.22,0.033]
[1741414411080,121.51978193,140.23,140.22,0.033]
[1741414411668,102.87013307,140.23,140.22,0.033]
[1741414412063,121.51978193,140.23,140.22,0.033]
[1741414412280,95.73903307,140.23,140.22,0.033]
[1741414412971,102.87013307,140.23,140.22,0.033]
[1741414413357,121.51978193,140.23,140.22,0.033]
[1741414415381,18.64964886,140.22,140.15,0.033]
[1741414415601,13.43903307,140.17,140.15,0.033]
[1741414417356,32.08868193,140.16,140.15,0.033]
[1741414419064,39.22338193,140.16,140.15,0.033]
[1741414423770,45.40338193,140.16,140.15,0.033]
[1741414425407,51.00302006,140.16,140.15,0.033]
[1741414426386,45.40338193,140.16,140.15,0.033]
[1741414427006,53.22298193,140.16,140.15,0.0001]
[1741414429376,53.25298193,140.16,140.15,0.0001]
[1741414430199,107.00911421,140.16,140.15,0.0001]
[1741414430496,110.64584713,140.16,140.15,0.0001]
[1741414430697,56.88971485,140.16,140.15,0.0001]
[1741414436108,18.64964886,140.15,140.13,0.5]
[1741414436410,168.14481421,140.14,140.13,0.0001]
[1741414436604,85.84481421,140.14,140.13,0.0001]
[1741414437606,92.98051421,140.14,140.13,0.0001]
[1741414440421,92.98051421,140.14,140.12,0.033]
[1741414440422,68.64964886,140.13,140.12,0.0001]
[1741414440599,82.08868193,140.13,140.12,0.0001]
[1741414441991,84.08868193,140.13,140.1,0.033]
[1741414442193,32.08868193,140.11,140.1,0.033]
[1741414442499,45.44588193,140.11,140.1,0.033]
[1741414444216,95.44588193,140.11,140.1,0.033]
[1741414446114,98.98210893,140.11,140.1,0.033]
[1741414446523,48.98210893,140.11,140.1,0.033]
[1741414447020,45.42588193,140.11,140.1,0.033]
[1741414447519,136.05613228,140.14,140.1,0.033]
[1741414447712,13.43903307,140.12,140.1,0.033]
[1741414448021,13.43903307,140.11,140.1,0.033]
[1741414450126,7.1367,140.12,140.1,0.033]
[1741414450127,13.43903307,140.12,140.1,0.033]
[1741414451014,13.43903307,140.11,140.1,0.033]
[1741414451611,25.78604886,140.13,140.1,0.033]
[1741414451924,13.43903307,140.11,140.1,0.033]
[1741414452420,32.08868193,140.11,140.1,0.033]
[1741414452834,39.22588193,140.11,140.1,0.033]
[1741414453514,89.22588193,140.11,140.1,0.033]
[1741414455335,92.77695351,140.11,140.1,0.033]
[1741414457319,92.77695351,140.11,140.08,0.033]
[1741414457320,18.64964886,140.1,140.07,0.033]
[1741414457528,13.43903307,140.08,140.07,0.033]
[1741414458402,20.57773307,140.08,140.07,0.033]
[1741414461007,32.08868193,140.08,140.07,0.033]
[1741414461617,13.43903307,140.08,140.07,0.033]
[1741414463827,20.57773307,140.08,140.07,0.033]
[1741414467426,102.90743307,140.09,140.07,0.033]
[1741414467621,13.43903307,140.08,140.07,0.033]
[1741414468928,95.76903307,140.09,140.07,0.033]
[1741414469135,13.43903307,140.08,140.07,0.033]
[1741414470535,102.90743307,140.09,140.07,0.033]
[1741414471217,13.43903307,140.08,140.07,0.033]
[1741414471415,102.90743307,140.09,140.07,0.033]
[1741414473740,13.43903307,140.08,140.07,0.033]
[1741414474434,20.57773307,140.08,140.07,0.033]
[1741414474636,20.60743307,140.09,140.07,0.033]
[1741414479264,0.03,140.09,140.07,0.033]
[1741414481272,0.03,140.09,140.07,7.1722]
[1741414482534,0.03,140.09,140.08,13.43903307]
[1741414482736,0.03,140.09,140.08,15.08763307]
[1741414483755,0.03,140.09,140.08,22.22633307]
[1741414487255,0.03,140.09,140.08,15.08763307]
[1741414487457,0.03,140.09,140.08,1.6486]
[1741414488058,0.03,140.09,140.08,22.22633307]
[1741414489962,0.03,140.09,140.08,22.25933307]
[1741414491040,0.03,140.12,140.09,18.64964886]
[1741414491254,0.03,140.12,140.11,13.43903307]
[1741414493071,0.03,140.12,140.11,20.57623307]
[1741414494445,0.03,140.12,140.11,97.86102105]
[1741414494642,0.03,140.12,140.11,90.27623307]
[1741414499267,0.03,140.16,140.12,1.6406]
[1741414499457,0.03,140.16,140.15,13.43903307]
[1741414500481,0.03,140.16,140.15,20.57423307]
[1741414500769,0.03,140.16,140.15,13.43903307]
[1741414500977,0.03,140.16,140.14,13.43903307]
[1741414501880,0.03,140.16,140.12,13.43903307]
[1741414502883,13.43903307,140.15,140.1,13.43903307]
[1741414503210,13.43903307,140.15,140.09,13.43903307]
[1741414503547,13.43903307,140.15,140.09,20.57713307]
[1741414503776,13.43903307,140.15,140.09,13.43903307]
[1741414504656,7.1357,140.14,140.08,13.47203307]
[1741414504878,20.57473307,140.14,140.08,13.47203307]
[1741414505255,20.57473307,140.14,140.08,0.033]
[1741414505256,13.43903307,140.13,140.08,0.033]
[1741414505890,6.1377,140.14,140.09,13.43903307]
[1741414507597,26.71263307,140.14,140.08,20.61063307]
[1741414507955,82.3,140.15,140.1,13.43903307]
[1741414509265,39.25338193,140.16,140.1,20.57633307]
[1741414511387,32.11868193,140.16,140.1,20.57633307]
[1741414512690,13.43903307,140.15,140.09,20.57703307]
[1741414513684,20.57433307,140.15,140.09,20.57703307]
[1741414514492,0.03,140.16,140.11,13.43903307]
[1741414514791,0.03,140.16,140.13,13.43903307]
[1741414514991,0.03,140.16,140.14,13.43903307]
[1741414515592,0.03,140.16,140.13,13.43903307]
[1741414515777,0.03,140.16,140.14,7.1357]
[1741414515972,0.03,140.16,140.14,20.57473307]
[1741414517398,0.03,140.16,140.13,20.57503307]
[1741414519178,0.03,140.16,140.14,13.43903307]
[1741414520183,0.03,140.16,140.14,20.57443307]
[1741414520890,0.03,140.16,140.13,13.43903307]
[1741414521970,0.03,140.16,140.14,7.1357]
[1741414522993,0.03,140.16,140.13,20.57503307]
[1741414523703,0.03,140.16,140.13,13.43903307]
[1741414526019,0.03,140.16,140.12,13.43903307]
[1741414526179,0.03,140.16,140.11,90.27603307]
[1741414526801,0.03,140.16,140.12,0.033]
[1741414527001,0.03,140.16,140.12,13.47203307]
[1741414527583,13.46903307,140.16,140.12,0.033]
[1741414528583,13.43903307,140.15,140.12,0.033]
[1741414528993,13.46903307,140.16,140.12,0.033]
[1741414529296,13.46903307,140.16,140.12,7.1696]
[1741414529474,0.03,140.16,140.12,7.1696]
[1741414529682,0.03,140.16,140.12,20.60863307]
[1741414530108,20.60383307,140.16,140.12,0.033]
[1741414530291,13.43903307,140.15,140.12,0.033]
[1741414530479,20.60383307,140.16,140.12,0.033]
[1741414531188,27.06143307,140.16,140.12,0.033]
[1741414531596,13.43903307,140.15,140.12,0.033]
[1741414532903,20.57423307,140.15,140.12,0.033]
[1741414533807,13.43903307,140.14,140.12,0.033]
[1741414534406,25.78584886,140.13,140.12,0.033]
[1741414534592,39.22488193,140.13,140.12,0.033]
[1741414535917,40.81298193,140.13,140.12,0.033]
[1741414540007,47.27058193,140.13,140.12,0.033]
[1741414541112,115.11108193,140.13,140.09,0.033]
[1741414541293,13.43903307,140.1,140.09,0.033]
[1741414541496,19.61903307,140.1,140.09,0.033]
[1741414542410,45.40638193,140.1,140.09,0.033]
[1741414543315,55.45208193,140.1,140.09,0.0001]
[1741414543713,53.45208193,140.1,140.09,0.0001]
[1741414549241,47.27208193,140.1,140.09,0.0001]
[1741414549399,13.43903307,140.1,140.09,0.0001]
[1741414550810,20.57673307,140.1,140.09,0.0001]
[1741414551018,39.22638193,140.1,140.09,0.0001]
[1741414557925,46.94008193,140.1,140.09,0.0001]
[1741414558263,96.94008193,140.1,140.09,0.0001]
[1741414560848,100.57023365,140.1,140.09,0.0001]
[1741414561438,18.64964886,140.09,140.08,0.0131]
[1741414561665,32.08868193,140.09,140.08,0.0131]
[1741414563362,39.22688193,140.09,140.08,0.0131]
[1741414565040,45.00273608,140.09,140.08,0.0131]
[1741414573246,62.84833608,140.09,140.06,0.033]
[1741414573839,13.43903307,140.07,140.06,0.033]
[1741414574166,19.61903307,140.07,140.06,0.033]
[1741414574464,26.75823307,140.07,140.06,0.033]
[1741414578461,26.75823307,140.07,140.02,0.033]
[1741414578462,68.64964886,140.06,140.02,0.033]
[1741414578663,32.08868193,140.03,140.02,0.033]
[1741414579467,39.22998193,140.03,140.02,0.033]
[1741414588970,18.64964886,140.02,140.0,10.133]
[1741414589175,38.26868193,140.01,140.0,10.133]
[1741414589874,18.64964886,140.0,139.98,0.033]
[1741414590171,13.43903307,139.99,139.98,0.033]
[1741414590349,32.08868193,139.99,139.98,0.033]
[1741414590773,39.23198193,139.99,139.98,0.033]
[1741414591760,18.64964886,139.98,139.96,0.033]
[1741414591952,32.08868193,139.96,139.95,0.033]
[1741414592157,38.26868193,139.96,139.95,0.033]
[1741414592851,45.41348193,139.96,139.95,0.033]
[1741414593319,95.41348193,139.96,139.95,0.0001]
[1741414593574,18.64964886,139.95,139.94,0.033]
[1741414593750,34.08868193,139.95,139.87,1.6737]
[1741414594070,85.84481421,139.94,139.87,1.6737]
[1741414594379,85.84481421,139.94,139.87,0.033]
[1741414594380,68.64964886,139.93,139.87,0.033]
[1741414594547,18.64964886,139.91,139.87,0.033]
[1741414594748,13.43903307,139.89,139.87,0.033]
[1741414594945,20.58743307,139.89,139.87,0.033]
[1741414596155,39.23708193,139.89,139.87,0.033]
[1741414597176,32.08868193,139.89,139.87,0.033]
[1741414597497,39.23708193,139.89,139.87,0.033]
[1741414597999,18.64964886,139.88,139.83,0.033]
[1741414598180,18.64964886,139.88,139.8,0.033]
[1741414598181,50.0,139.81,139.8,0.033]
[1741414598381,74.84964886,139.81,139.71,1.6407]
[1741414598593,13.43903307,139.74,139.71,1.6407]
[1741414599306,13.43903307,139.72,139.66,21.35783307]
[1741414600090,13.43903307,139.73,139.67,13.43903307]
[1741414601080,13.43903307,139.73,139.67,20.59863307]
[1741414601281,13.43903307,139.73,139.67,28.20592214]
[1741414601282,21.04632214,139.73,139.67,28.20592214]
[1741414601915,21.04632214,139.72,139.67,21.04632214]
[1741414602208,21.04632214,139.72,139.66,36.12522214]
[1741414603401,21.04632214,139.72,139.67,21.04632214]
[1741414603601,21.04632214,139.72,139.66,36.12522214]
[1741414604012,28.20352214,139.72,139.66,28.96512214]
[1741414604507,28.20352214,139.72,139.66,36.12522214]
[1741414605305,21.04632214,139.71,139.66,36.12522214]
[1741414605787,21.04632214,139.71,139.66,15.0789]
[1741414605979,21.04632214,139.7,139.66,15.0789]
[1741414606177,39.695971,139.71,139.66,15.0789]
[1741414606706,21.04632214,139.7,139.66,7.9188]
[1741414607209,39.695971,139.71,139.66,15.079]
[1741414607384,39.695971,139.71,139.66,36.12532214]
[1741414607580,39.695971,139.71,139.66,15.079]
[1741414607882,18.64964886,139.71,139.66,36.12532214]
[1741414608109,21.04632214,139.73,139.67,21.04632214]
[1741414608421,45.895971,139.74,139.68,21.04632214]
[1741414609912,21.04632214,139.73,139.67,21.04632214]
[1741414610411,21.04632214,139.73,139.68,7.1592]
[1741414610616,21.04632214,139.73,139.68,28.20552214]
[1741414611911,21.04632214,139.73,139.68,7.1592]
[1741414614509,21.04632214,139.72,139.68,7.1592]
[1741414616808,24.84964886,139.74,139.66,0.033]
[1741414617013,21.04632214,139.71,139.66,0.033]
[1741414617388,21.04632214,139.7,139.66,0.033]
[1741414618204,21.04632214,139.71,139.66,7.1931]
[1741414618514,39.695971,139.72,139.66,28.23942214]
[1741414619111,21.04632214,139.71,139.66,28.23942214]
[1741414619419,21.04632214,139.71,139.66,7.1931]
[1741414619912,21.04632214,139.71,139.66,28.23942214]
[1741414620124,21.04632214,139.71,139.66,0.033]
[1741414620512,39.695971,139.7,139.66,0.033]
[1741414621818,28.20402214,139.71,139.66,0.033]
[1741414622007,21.04632214,139.71,139.66,21.07932214]
[1741414622398,46.853171,139.72,139.66,21.07932214]
[1741414622599,21.04632214,139.71,139.66,0.033]
[1741414623199,21.04632214,139.71,139.61,8.0334928]
[1741414623200,68.64964886,139.62,139.52,0.033]
[1741414623405,13.50015165,139.58,139.52,0.033]
[1741414623794,20.66395165,139.59,139.52,13.53315165]
[1741414623994,27.12395165,139.59,139.52,13.53315165]
[1741414624224,13.50015165,139.58,139.52,0.033]
[1741414624527,13.50015165,139.56,139.52,0.033]
[1741414625391,21.10083595,139.59,139.52,21.13383595]
[1741414626031,21.10083595,139.58,139.52,21.13383595]
[1741414626425,21.10083595,139.58,139.52,0.033]
[1741414626735,21.10083595,139.56,139.52,0.033]
[1741414629123,21.10083595,139.55,139.52,0.033]
[1741414629601,21.10083595,139.56,139.52,0.033]
[1741414630230,21.10083595,139.57,139.52,0.033]
[1741414630416,6.46,139.6,139.53,21.10083595]
[1741414630731,21.10083595,139.61,139.55,21.10083595]
[1741414630917,21.10083595,139.6,139.53,39.75048481]
[1741414631112,21.10083595,139.59,139.53,39.75048481]
[1741414632132,21.10083595,139.59,139.53,46.91718481]
[1741414632815,21.10083595,139.6,139.54,21.10083595]
[1741414633027,21.10083595,139.61,139.55,29.24003595]
[1741414633346,21.10083595,139.63,139.57,21.10083595]
[1741414633537,21.10083595,139.64,139.58,21.10083595]
[1741414633708,21.10083595,139.64,139.58,28.26493595]
[1741414634138,21.10083595,139.63,139.58,21.10083595]
[1741414634433,21.10083595,139.63,139.57,34.72553595]
[1741414635233,168.4664,139.67,139.57,34.72553595]
[1741414635432,21.10083595,139.64,139.58,28.26513595]
[1741414635636,21.10083595,139.65,139.59,21.10083595]
[1741414636641,0.03,139.63,139.59,21.10083595]
[1741414636935,0.03,139.63,139.58,28.26513595]
[1741414637136,0.03,139.63,139.59,21.10083595]
[1741414638443,0.03,139.63,139.59,28.26423595]
[1741414639346,0.03,139.63,139.58,7.1643]
[1741414639524,0.03,139.63,139.59,21.10083595]
[1741414640923,0.03,139.63,139.6,7.1633]
[1741414641125,0.03,139.63,139.61,21.10083595]
[1741414643048,0.03,139.63,139.62,7.1622]
[1741414645216,0.03,139.63,139.61,7.1626]
[1741414646746,0.03,139.63,139.62,21.10083595]
[1741414647852,0.03,139.63,139.61,28.26343595]
[1741414648540,0.03,139.63,139.62,21.10083595]
[1741414649458,0.03,139.63,139.61,7.1626]
[1741414649459,0.03,139.63,139.61,28.26343595]
[1741414650752,0.03,139.63,139.61,21.10083595]
[1741414650955,0.03,139.63,139.61,28.26343595]
[1741414653273,0.03,139.63,139.62,21.10083595]
[1741414653854,0.03,139.63,139.61,28.26343595]
[1741414654047,0.03,139.63,139.6,27.50083595]
[1741414654435,0.03,139.63,139.6,6.4]
[1741414654633,0.03,139.63,139.59,21.10083595]
[1741414658436,0.03,139.63,139.59,28.26443595]
[1741414659147,0.03,139.63,139.58,28.26503595]
[1741414660161,0.03,139.63,139.59,21.10083595]
[1741414660342,0.03,139.63,139.59,28.26463595]
[1741414661052,0.03,139.63,139.59,28.29763595]
[1741414661250,0.03,139.63,139.59,20.68377545]
[1741414661450,0.03,139.63,139.6,13.48697545]
[1741414662869,0.03,139.63,139.6,20.65007545]
[1741414663158,0.03,139.63,139.61,13.48697545]
[1741414663560,0.03,139.63,139.6,20.65007545]
[1741414664145,0.03,139.63,139.6,7.1631]
[1741414664552,0.03,139.63,139.6,20.65007545]
[1741414668068,0.03,139.63,139.61,13.48697545]
[1741414668389,0.03,139.63,139.62,13.48697545]
[1741414669274,0.03,139.63,139.62,7.1622]
[1741414670071,0.03,139.63,139.62,20.64917545]
[1741414671278,0.03,139.63,139.62,26.98917545]
[1741414675088,0.03,139.63,139.6,0.033]
[1741414675248,13.48697545,139.62,139.6,0.033]
[1741414675454,13.48697545,139.61,139.6,0.033]
[1741414676878,20.64977545,139.61,139.6,0.033]
[1741414677280,28.24950954,139.61,139.6,0.033]
[1741414678173,28.24950954,139.61,139.59,0.033]
[1741414678174,59.6375584,139.61,139.59,0.033]
[1741414678349,20.21404886,139.59,139.56,0.033]
[1741414678557,21.08670954,139.57,139.56,0.033]